bitfinex/quotes_ETHUSD_20260106
["timestamp","ask_amount","ask_price","bid_price","bid_amount"]
[1767695084901,0.69435962,3224.7,3224.3,0.001]
[1767695085100,6.20403458,3224.8,3224.3,0.001]
[1767695085425,3.10301729,3224.8,3224.3,0.001]
[1767695087517,0.002,3224.8,3224.3,0.001]
[1767695088617,0.002,3224.8,3224.3,0.93939417]
[1767695089315,0.002,3224.8,3224.3,0.92645523]
[1767695094031,0.002,3224.8,3224.6,0.001]
[1767695099338,0.002,3224.8,3224.0,0.001]
[1767695099518,0.002,3224.8,3224.1,0.92724558]
[1767695100805,0.99647957,3224.8,3224.1,0.92724558]
[1767695101002,0.99647957,3224.8,3224.2,0.95826102]
[1767695101428,0.99647957,3224.8,3224.2,0.92724558]
[1767695101625,0.002,3224.8,3224.2,0.92724558]
[1767695101827,0.002,3224.8,3224.3,1.39731907]
[1767695102312,0.002,3224.8,3224.3,0.99443282]
[1767695102641,0.002,3224.8,3224.0,3.41295137]
[1767695102642,3.1029675,3224.8,3224.1,0.99443282]
[1767695103515,0.002,3224.8,3224.1,4.09605108]
[1767695103942,0.002,3224.8,3224.2,0.0189828]
[1767695104145,0.97741384,3224.8,3224.2,0.0189828]
[1767695104324,0.97741384,3224.8,3224.3,0.41150339]
[1767695104716,0.002,3224.8,3224.4,0.99443282]
[1767695104917,0.002,3225.1,3224.6,5.60649797]
[1767695105321,0.002,3225.1,3224.6,0.99443282]
[1767695105809,0.97741384,3225.1,3224.5,0.03101256]
[1767695106146,0.002,3225.1,3224.6,0.99443282]
[1767695106513,0.002,3224.8,3224.6,0.99443282]
[1767695106710,0.002,3225.1,3224.6,3.10115983]
[1767695106965,0.002,3225.1,3224.7,0.99443282]
[1767695108141,0.002,3225.1,3224.9,0.99443282]
[1767695108333,0.002,3225.2,3224.7,1.00858974]
[1767695108527,0.002,3225.5,3224.9,0.99443282]
[1767695108841,0.002,3225.5,3224.9,3.10087134]
[1767695109416,0.002,3225.5,3224.8,5.27767126]
[1767695109621,0.002,3225.5,3224.8,4.0953738]
[1767695110023,0.002,3225.5,3224.8,3.10094098]
[1767695110438,0.002,3225.5,3224.8,4.0953738]
[1767695110744,0.002,3225.5,3224.8,3.10094098]
[1767695110948,0.002,3225.5,3224.9,0.99443282]
[1767695111124,0.002,3225.5,3225.1,0.99443282]
[1767695113046,0.002,3225.5,3225.2,0.99443282]
[1767695113357,0.002,3225.5,3225.1,3.10067725]
[1767695113644,0.002,3225.8,3225.2,0.99443282]
[1767695115048,0.002,3225.8,3225.4,0.99443282]
[1767695115242,0.002,3225.8,3225.5,0.40949196]
[1767695116966,0.002,3225.8,3225.4,0.99443282]
[1767695118385,0.002,3225.8,3225.4,4.09481208]
[1767695118541,0.002,3225.9,3225.8,0.99443282]
[1767695118869,0.002,3226.1,3225.4,3.10037926]
[1767695118870,0.002,3226.1,3225.5,4.61206515]
[1767695119077,0.002,3226.1,3225.6,1.18072679]
[1767695119856,0.002,3225.8,3225.6,4.28087514]
[1767695120066,0.002,3226.1,3225.7,0.99443282]
[1767695121191,0.002,3226.4,3225.6,11.9931387]
[1767695121355,0.002,3226.4,3225.7,2.19374669]
[1767695122082,0.002,3226.4,3225.9,0.99443282]
[1767695122861,0.00150484,3226.7,3225.9,0.99443282]
[1767695123389,0.00150484,3226.7,3226.0,0.98825135]
[1767695123594,0.002,3227.1,3226.3,0.99443282]
[1767695123884,0.002,3227.1,3226.6,0.99443282]
[1767695125649,3.09839142,3227.5,3227.1,0.99443282]
[1767695125882,6.19678284,3227.5,3227.1,0.99243282]
[1767695126087,0.01865353,3227.6,3226.5,0.99443282]
[1767695126292,0.01865353,3227.2,3226.5,0.99443282]
[1767695126486,0.58113214,3227.2,3226.5,0.99443282]
[1767695127281,0.58113214,3227.2,3225.8,7.71205101]
[1767695127282,0.01865353,3227.0,3226.2,0.99443282]
[1767695127452,0.99406737,3227.0,3226.2,0.99443282]
[1767695127854,0.99406737,3227.0,3225.6,0.03100198]
[1767695127855,0.97541384,3226.7,3225.6,0.03100198]
[1767695128102,3.11789111,3226.6,3225.7,0.99443282]
[1767695128279,3.11789111,3226.6,3225.8,0.99443282]
[1767695128763,3.09875739,3227.1,3226.0,0.99443282]
[1767695129774,6.19751478,3227.1,3226.0,4.09423748]
[1767695129979,6.19751478,3227.1,3226.0,0.99443282]
[1767695130892,0.99406737,3227.0,3226.0,0.99443282]
[1767695131074,0.96328023,3226.8,3226.0,0.99443282]
[1767695131678,0.96328023,3226.8,3226.1,0.001]
[1767695131960,3.09914153,3226.7,3226.1,0.001]
[1767695133487,0.96328023,3226.6,3226.1,0.001]
[1767695133682,0.96328023,3226.6,3225.6,0.84300198]
[1767695133884,0.96328023,3226.5,3225.6,0.812]
[1767695134058,0.96328023,3226.5,3225.6,3.13116394]
[1767695134259,3.09928436,3226.6,3225.7,1.26391781]
[1767695134458,3.09928436,3226.6,3225.8,0.95080142]
[1767695135988,0.96328023,3226.6,3225.7,0.31311639]
[1767695136166,0.98193376,3226.6,3225.7,0.31311639]
[1767695136488,0.98193376,3226.6,3225.4,0.8430039]
[1767695137070,0.96328023,3226.6,3225.6,3.10014611]
[1767695137394,0.96328023,3226.6,3225.7,3.13104946]
[1767695137764,0.96328023,3226.6,3225.7,3.10004845]
[1767695137966,0.96328023,3226.6,3225.8,0.62311965]
[1767695138165,0.96328023,3226.5,3225.8,0.62311965]
[1767695138384,0.96328023,3226.5,3225.7,3.10007374]
[1767695138780,0.96328023,3226.5,3225.8,3.10000381]
[1767695138976,0.96328023,3226.5,3225.8,3.13100387]
[1767695139291,0.96328023,3226.5,3225.7,3.10005372]
[1767695141291,3.09924905,3226.6,3225.8,0.95080142]
[1767695141492,3.09924905,3226.6,3225.9,1.35588693]
[1767695141693,3.09924905,3226.6,3225.9,0.95080142]
[1767695142879,0.002,3226.8,3225.9,0.95080142]
[1767695143393,0.96528023,3226.8,3225.9,0.95080142]
[1767695144899,3.09914153,3226.7,3225.9,0.95180142]
[1767695145068,0.002,3226.3,3225.9,0.95180142]
[1767695146680,0.002,3226.3,3226.0,1.38697717]
[1767695146881,0.002,3226.3,3226.0,1.35597903]
[1767695147188,0.002,3226.3,3226.1,0.03099717]
[1767695147495,0.002,3226.6,3226.1,0.03099717]
[1767695147804,0.002,3226.6,3226.1,0.98179859]
[1767695149081,0.002,3226.6,3226.1,0.95080142]
[1767695150808,0.002,3226.6,3226.0,3.13080654]
[1767695151097,0.002,3226.6,3226.1,0.31318065]
[1767695151320,0.002,3226.6,3226.1,3.41288813]
[1767695151923,0.002,3226.6,3226.2,0.95080142]
[1767695152786,0.002,3226.6,3226.4,0.95080142]
[1767695153002,0.96528023,3226.8,3226.2,0.03099621]
[1767695153301,0.96528023,3226.8,3226.3,0.31307123]
[1767695156012,0.96528023,3226.8,3226.0,3.13076161]
[1767695156806,0.002,3226.8,3226.2,0.97556516]
[1767695157006,3.09900499,3226.9,3226.7,0.97556516]
[1767695157206,3.10078241,3227.1,3226.7,0.97556516]
[1767695157510,3.10078241,3227.1,3226.3,0.97556516]
[1767695157681,0.002,3227.1,3226.3,0.97556516]
[1767695157878,0.002,3227.1,3226.5,0.001]
[1767695158310,0.002,3227.1,3225.9,3.91287956]
[1767695158311,0.992546,3226.8,3225.9,0.97656516]
[1767695158520,0.992546,3226.8,3226.1,0.97556516]
[1767695158521,0.812,3226.8,3226.1,0.97556516]
[1767695158813,0.812,3227.0,3226.2,0.97556516]
[1767695159201,0.812,3227.0,3226.2,0.97262172]
[1767695159396,2.04719191,3227.0,3226.2,0.97262172]
[1767695160009,6.1978989,3226.9,3226.2,0.97262172]
[1767695162812,7.10705486,3226.9,3225.9,0.001]
[1767695163127,0.90915596,3226.8,3225.9,0.001]
[1767695163309,0.90915596,3226.8,3225.4,0.90787667]
[1767695163482,0.90915596,3226.6,3225.4,0.90787667]
[1767695164526,0.90915596,3226.4,3225.5,0.90787667]
[1767695164689,3.09933364,3226.5,3225.5,0.90787667]
[1767695164890,6.19866728,3226.5,3225.5,0.90787667]
[1767695165686,7.10782324,3226.5,3225.5,0.90787667]
[1767695166001,0.71078232,3226.4,3225.5,0.90787667]
[1767695166325,0.90915596,3226.3,3225.5,0.90787667]
[1767695166524,0.71078232,3226.4,3225.1,0.812]
[1767695166525,4.0087778,3226.2,3225.3,0.90787667]
[1767695167716,7.10839964,3226.2,3225.3,0.90787667]
[1767695167903,0.90915596,3226.0,3225.1,0.03100679]
[1767695168226,0.90915596,3226.0,3225.1,0.90787667]
[1767695168390,4.00906606,3225.9,3225.1,0.90787667]
[1767695169113,0.90915596,3225.9,3225.1,4.00855446]
[1767695169326,0.90915596,3226.2,3225.2,0.90787667]
[1767695169552,0.90915596,3226.2,3225.4,0.90787667]
[1767695169694,4.00881788,3226.2,3225.6,0.001]
[1767695170032,0.002,3225.9,3225.6,0.001]
[1767695170315,0.002,3225.9,3225.6,0.90887667]
[1767695170488,0.91115596,3226.2,3225.6,0.001]
[1767695170833,0.91115596,3226.2,3225.6,0.31422381]
[1767695171010,0.91115596,3226.2,3225.6,0.001]
[1767695175827,0.002,3226.2,3225.6,0.001]
[1767695176036,0.002,3226.2,3225.6,0.90887667]
[1767695179128,0.91115596,3226.2,3225.0,3.10170654]
[1767695179330,0.91115596,3226.2,3225.1,0.69317065]
[1767695179633,0.91115596,3226.2,3225.1,3.79384572]
[1767695180237,0.91115596,3226.2,3225.1,0.69317065]
[1767695180438,0.91115596,3226.2,3225.0,0.001]
[1767695180825,0.90915596,3226.1,3225.0,0.001]
[1767695181137,0.90915596,3226.1,3225.0,0.90887667]
[1767695181301,0.814,3226.2,3225.0,0.001]
[1767695181302,0.90915596,3225.9,3225.0,0.001]
[1767695182542,0.90915596,3225.8,3225.0,0.001]
[1767695182745,0.90915596,3225.6,3225.0,0.001]
[1767695183755,3.10029452,3225.5,3225.0,0.001]
[1767695183936,7.109745,3225.5,3225.0,0.001]
[1767695184125,4.00945048,3225.5,3225.0,0.001]
[1767695184316,3.10024068,3225.6,3225.0,0.90887667]
[1767695184641,3.65173199,3225.7,3225.0,0.90887667]
[1767695184850,6.75187978,3225.7,3225.0,0.90887667]
[1767695185017,0.75638798,3225.6,3225.0,0.90887667]
[1767695186043,3.8566299,3225.6,3225.0,0.90887667]
[1767695186756,3.10007639,3225.8,3225.1,0.90787667]
[1767695186957,6.20015278,3225.8,3225.1,0.90787667]
[1767695188756,6.2018202,3225.9,3225.1,0.90787667]
[1767695189365,7.11097616,3225.9,3225.1,0.90787667]
[1767695190475,7.90327378,3225.9,3225.1,0.90787667]
[1767695190771,0.90915596,3225.8,3225.0,0.001]
[1767695191939,6.99411782,3225.9,3225.0,0.96862004]
[1767695192143,7.9409897,3225.9,3225.0,0.96862004]
[1767695194365,3.1001023,3225.7,3225.0,0.96862004]
[1767695195072,3.1001023,3225.7,3225.0,0.96724609]
[1767695195390,0.002,3225.6,3225.0,0.96724609]
[1767695200280,0.002,3225.6,3225.1,0.96762004]
[1767695200888,0.002,3225.6,3225.2,0.96762004]
[1767695201098,0.002,3225.6,3225.2,1.374458]
[1767695203566,0.002,3225.6,3225.3,0.96762004]
[1767695212393,0.00050741,3225.6,3225.5,0.96762004]
[1767695212709,0.002,3225.9,3225.4,0.96762004]
[1767695217209,0.94887188,3225.9,3225.1,3.10062947]
[1767695217401,0.002,3225.9,3225.3,0.96762004]
[1767695217719,0.94687188,3225.8,3225.2,3.41063509]
[1767695219679,0.94687188,3225.8,3225.6,0.001]
[1767695221710,0.90354195,3225.7,3225.2,0.31006295]
[1767695222409,0.90354195,3225.7,3224.9,3.91282173]
[1767695222609,3.10002025,3225.8,3225.0,0.92645103]
[1767695223028,0.90354195,3225.8,3225.0,4.02721449]
[1767695223215,0.90354195,3225.8,3225.0,0.92645103]
[1767695223216,0.90354195,3225.7,3225.0,0.92645103]
[1767695223422,10.81065152,3225.8,3224.9,0.92645103]
[1767695223620,3.10019841,3225.6,3224.9,0.92645103]
[1767695224048,4.00369251,3225.7,3224.9,0.92645103]
[1767695231646,4.00369251,3225.7,3225.2,0.001]
[1767695235647,3.10007211,3225.8,3225.2,0.001]
[1767695235951,3.10007211,3225.8,3225.2,1.00042028]
[1767695236334,4.28055816,3225.8,3225.2,1.00042028]
[1767695241954,1.18048605,3225.8,3225.2,1.00042028]
[1767695242938,4.28051309,3225.8,3225.2,1.00042028]
[1767695243656,1.18048605,3225.8,3225.2,1.00042028]
[1767695244142,4.28049745,3225.8,3225.2,1.00042028]
[1767695248259,0.002,3225.9,3225.5,0.99942028]
[1767695249259,0.994387,3225.9,3225.2,6.2021658]
[1767695254672,0.994387,3225.9,3225.3,0.97331641]
[1767695254673,0.002,3225.9,3225.3,0.97331641]
[1767695255259,0.002,3225.9,3225.3,4.07372053]
[1767695255465,0.002,3225.9,3225.4,0.97331641]
[1767695255674,0.002,3225.9,3225.6,0.97331641]
[1767695257670,0.002,3225.9,3225.6,0.97131641]
[1767695260654,0.002,3225.9,3225.7,0.97331641]
[1767695260857,0.002,3225.9,3225.5,0.001]
[1767695260858,0.002,3226.2,3225.9,0.97331641]
[1767695263048,0.002,3226.2,3225.6,0.97331641]
[1767695263450,0.002,3226.2,3225.6,1.38078285]
[1767695263669,0.002,3226.2,3225.6,0.97331641]
[1767695263864,0.97238606,3226.2,3225.5,0.001]
[1767695265276,3.09971792,3226.1,3225.5,0.001]
[1767695265664,4.07205456,3226.2,3225.5,0.001]
[1767695266357,4.07205456,3226.2,3225.5,0.97431641]
[1767695268449,0.002,3225.9,3225.5,0.97431641]
[1767695271279,0.002,3225.9,3225.5,1.38179659]
[1767695278183,0.002,3225.9,3225.5,0.001]
[1767695279857,0.002,3225.9,3225.8,0.001]
[1767695281286,0.002,3225.9,3225.5,0.93288002]
[1767695285079,0.002,3225.9,3225.5,0.001]
[1767695285282,0.95285149,3225.8,3225.5,0.001]
[1767695287999,0.002,3225.9,3225.5,0.001]
[1767695289299,0.002,3225.9,3225.5,0.93288002]
[1767695296904,0.002,3225.9,3225.5,0.001]
[1767695298788,0.95485149,3225.9,3225.5,0.001]
[1767695303695,0.95485149,3225.9,3225.8,0.001]
[1767695303897,0.95285149,3225.8,3225.5,0.001]
[1767695304786,0.002,3225.9,3225.5,0.93288002]
[1767695312328,0.002,3225.9,3225.7,0.96609731]
[1767695312631,0.002,3225.9,3225.5,0.001]
[1767695312815,0.002,3225.9,3225.5,0.96709731]
[1767695316024,0.002,3225.9,3225.8,0.001]
[1767695316626,0.94869666,3225.9,3225.2,0.001]
[1767695317021,0.002,3225.9,3225.3,0.96609731]
[1767695322203,0.002,3225.9,3225.3,1.37286412]
[1767695323114,0.002,3225.9,3225.4,0.96609731]
[1767695325839,0.002,3225.9,3225.3,0.40676681]
[1767695326132,0.94669666,3225.8,3225.2,0.001]
[1767695326337,0.94669666,3225.7,3225.2,0.001]
[1767695327737,0.94869666,3225.6,3225.2,0.001]
[1767695328037,0.94869666,3225.6,3224.8,7.26813196]
[1767695328205,4.04889837,3225.6,3224.8,7.26813196]
[1767695329308,4.04889837,3225.6,3224.8,4.16721274]
[1767695329705,4.04889837,3225.6,3224.8,3.20111543]
[1767695329706,0.94669666,3225.5,3224.8,3.20111543]
[1767695329913,0.94669666,3225.4,3224.8,3.20111543]
[1767695330914,3.10224493,3225.6,3224.8,4.16721274]
[1767695331113,4.04894159,3225.6,3224.8,4.16721274]
[1767695331612,4.04894159,3225.6,3224.8,7.26816568]
[1767695331937,0.94669666,3225.5,3224.8,4.16721274]
[1767695332138,0.94669666,3225.5,3224.8,4.89403443]
[1767695332438,0.94669666,3225.4,3224.8,4.89403443]
[1767695332815,0.94669666,3225.4,3224.8,3.92793712]
[1767695334517,0.94669666,3225.4,3224.8,7.02890102]
[1767695334828,0.94869666,3225.6,3224.9,0.96609731]
[1767695339542,0.94869666,3225.6,3225.1,0.001]
[1767695339780,1.35357921,3225.6,3225.1,0.001]
[1767695340445,0.002,3225.3,3225.1,0.001]
[1767695342030,0.98136596,3225.3,3225.1,0.001]
[1767695342244,0.98136596,3225.3,3224.5,0.812]
[1767695342551,0.98136596,3225.3,3224.5,3.91319468]
[1767695342744,0.98136596,3225.3,3224.5,4.86497692]
[1767695343326,0.98136596,3225.3,3224.5,5.66161655]
[1767695346741,0.98136596,3225.3,3224.5,8.76287255]
[1767695346927,0.98136596,3225.3,3224.6,0.95178224]
[1767695348359,4.08187602,3225.3,3224.6,0.95178224]
[1767695349271,0.97936596,3225.2,3224.5,0.79663963]
[1767695349567,0.97936596,3225.2,3224.4,0.95178224]
[1767695349759,0.97936596,3225.2,3224.5,0.4053181]
[1767695349933,0.97936596,3225.2,3224.4,0.95178224]
[1767695350252,0.97936596,3225.2,3224.4,4.05313245]
[1767695352069,4.07997464,3225.2,3224.7,0.001]
[1767695352733,0.97936596,3225.2,3224.7,0.001]
[1767695352934,0.002,3225.0,3224.7,0.001]
[1767695355275,0.002,3225.0,3224.7,0.95278224]
[1767695357252,0.002,3225.0,3224.7,1.35818057]
[1767695358671,0.002,3225.0,3224.7,0.95278224]
[1767695359249,0.002,3225.0,3224.4,3.10130147]
[1767695359458,0.002,3225.0,3224.5,4.05295419]
[1767695360263,0.002,3225.0,3224.6,0.95178224]
[1767695365356,0.002,3225.0,3224.6,4.05293743]
[1767695365555,0.002,3224.7,3224.6,4.05293743]
[1767695365755,0.98136596,3225.0,3224.6,3.10115519]
[1767695366275,0.98136596,3225.0,3224.5,3.1012089]
[1767695366976,0.98136596,3225.0,3224.2,0.812]
[1767695367163,0.98136596,3225.0,3224.3,6.20289674]
[1767695367164,0.66555328,3225.0,3224.3,6.20289674]
[1767695367356,0.66555328,3225.0,3224.4,0.70148967]
[1767695368178,0.66555328,3225.0,3224.5,3.101256]
[1767695372486,0.55194297,3225.3,3224.5,4.06967353]
[1767695372674,0.55194297,3225.3,3224.6,0.96841753]
[1767695373461,1.50947757,3225.3,3224.6,4.06957444]
[1767695373762,0.9575346,3225.2,3224.4,3.80279706]
[1767695374169,0.9575346,3225.2,3224.4,4.77121459]
[1767695374682,0.9575346,3225.2,3224.5,0.96841753]
[1767695376791,4.05812661,3225.2,3224.5,0.96841753]
[1767695377692,0.002,3225.0,3224.5,0.96841753]
[1767695377874,0.002,3225.0,3224.5,1.52683899]
[1767695380368,0.002,3225.0,3224.3,4.8828336]
[1767695380568,0.002,3225.0,3224.4,0.96841753]
[1767695384198,0.9595346,3225.0,3224.4,0.96841753]
[1767695384900,0.9595346,3225.0,3224.0,0.001]
[1767695385075,0.9575346,3224.8,3224.0,0.001]
[1767695385274,3.10087134,3224.9,3224.0,0.96941753]
[1767695385275,1.36337519,3224.7,3224.0,0.96941753]
[1767695385598,0.9575346,3224.7,3224.0,0.96941753]
[1767695387198,4.05860155,3224.7,3224.0,0.96941753]
[1767695387408,0.9575346,3224.7,3224.0,0.96941753]
[1767695388701,0.9595346,3225.0,3224.1,0.99943393]
[1767695389104,0.9595346,3225.0,3224.1,0.96841753]
[1767695389291,4.06036696,3225.0,3224.3,0.96941753]
[1767695390594,0.002,3225.0,3224.3,0.96941753]
[1767695391491,3.10279666,3225.0,3224.3,0.96941753]
[1767695393623,4.06033126,3225.0,3224.3,0.96941753]
[1767695393912,0.9575346,3224.9,3224.3,0.001]
[1767695394211,0.75993709,3224.9,3224.3,0.001]
[1767695394709,1.71747169,3224.9,3224.3,0.001]
[1767695395009,0.9575346,3224.8,3224.3,0.001]
[1767695399123,0.9575346,3224.7,3224.0,0.001]
[1767695400187,0.9575346,3224.7,3224.0,3.10273314]
[1767695400487,0.9575346,3224.7,3224.1,0.31027331]
[1767695400707,0.9575346,3224.6,3224.1,0.31027331]
[1767695401015,0.9575346,3224.6,3224.0,0.001]
[1767695401515,0.9575346,3224.6,3224.3,0.001]
[1767695402619,0.9975686,3224.5,3224.3,0.001]
[1767695403907,0.9975686,3224.5,3224.0,0.001]
[1767695404520,3.10105575,3224.8,3224.1,0.94031882]
[1767695404698,0.79780632,3224.7,3224.1,0.93582366]
[1767695404895,1.76085466,3224.7,3224.1,0.93582366]
[1767695406039,3.10115983,3224.6,3224.1,0.93582366]
[1767695407423,3.10115983,3224.6,3224.0,0.001]
[1767695407424,7.165368,3224.6,3224.0,0.001]
[1767695407609,7.96168543,3224.6,3224.0,0.001]
[1767695408200,4.8605256,3224.6,3224.0,0.001]
[1767695408823,7.96168543,3224.6,3224.0,0.001]
[1767695409131,0.96304834,3224.5,3223.4,3.91628041]
[1767695409297,0.96304834,3224.5,3223.4,4.85659923]
[1767695409501,0.96304834,3224.5,3223.6,0.94031882]
[1767695410102,4.06435009,3224.5,3223.7,0.94031882]
[1767695410802,3.10130175,3224.5,3223.7,0.94031882]
[1767695411000,6.2026035,3224.5,3223.7,0.94031882]
[1767695411203,7.16565184,3224.5,3223.7,0.94031882]
[1767695411433,0.79619693,3224.4,3223.7,0.94031882]
[1767695412503,3.89761969,3224.4,3223.7,0.94031882]
[1767695413133,0.79619693,3224.4,3224.0,0.001]
[1767695413635,0.002,3224.3,3224.0,0.001]
[1767695417809,0.96504834,3224.3,3224.0,0.001]
[1767695418331,0.96304834,3224.2,3223.5,3.10221808]
[1767695421426,0.96304834,3224.2,3223.4,3.91627927]
[1767695422945,0.96304834,3224.1,3223.4,3.91627927]
[1767695423946,0.96504834,3224.3,3223.5,0.94031882]
[1767695424150,4.0665088,3224.3,3223.5,0.94031882]
[1767695424648,0.96504834,3224.3,3223.5,0.94031882]
[1767695425349,0.96504834,3224.3,3223.6,0.94031882]
[1767695426348,0.96504834,3224.3,3223.7,0.001]
[1767695426548,4.06649881,3224.3,3223.7,0.001]
[1767695427513,4.78327704,3224.3,3223.7,0.001]
[1767695429154,0.96304834,3224.2,3223.7,0.001]
[1767695429451,3.10164076,3224.1,3223.7,0.001]
[1767695429647,4.0646891,3224.1,3223.7,0.001]
[1767695429950,0.96304834,3224.0,3223.7,0.001]
[1767695430251,4.06464304,3224.2,3223.7,0.001]
[1767695430456,0.78848047,3224.2,3223.7,0.94131882]
[1767695430620,0.002,3224.3,3223.7,0.94131882]
[1767695438580,0.002,3224.0,3223.7,0.94131882]
[1767695443497,0.002,3224.0,3223.7,0.93931882]
[1767695446793,0.002,3224.3,3223.8,0.95755159]
[1767695449099,0.002,3224.3,3223.6,0.95755159]
[1767695449302,0.002,3224.3,3223.6,1.36362431]
[1767695449998,0.002,3224.3,3223.7,0.95755159]
[1767695450868,0.002,3224.3,3224.0,0.001]
[1767695454177,3.10344837,3224.3,3224.0,0.001]
[1767695456307,0.002,3224.3,3224.0,0.001]
[1767695461574,0.002,3224.3,3224.0,0.93609324]
[1767695463409,0.98959305,3224.6,3224.0,0.001]
[1767695463578,0.98959305,3224.6,3224.0,0.5901798]
[1767695464080,0.002,3224.6,3224.1,0.93509324]
[1767695468599,0.002,3224.6,3224.2,0.93509324]
[1767695473920,0.002,3224.6,3224.0,1.49425568]
[1767695474100,0.002,3224.6,3224.1,0.93509324]
[1767695474820,0.002,3224.3,3224.1,0.93509324]
[1767695475119,0.98759305,3224.5,3224.0,0.55916244]
[1767695475321,0.98759305,3224.5,3224.1,0.36609858]
[1767695475618,0.98759305,3224.5,3224.1,3.46771979]
[1767695475821,0.002,3224.6,3224.1,4.40281303]
[1767695476019,0.002,3224.6,3224.1,1.30119182]
[1767695476719,0.98759305,3224.8,3224.1,4.40281037]
[1767695477024,0.98759305,3224.8,3224.2,0.44038104]
[1767695479596,0.98759305,3224.8,3224.1,1.30119182]
[1767695480306,0.98759305,3224.8,3224.1,4.40282685]
[1767695481723,3.10087395,3224.9,3224.2,0.93509324]
[1767695481925,3.10277809,3225.0,3224.2,0.93509324]
[1767695482105,3.10277809,3225.0,3224.4,0.93509324]
[1767695482304,0.002,3225.0,3224.4,0.93509324]
[1767695486030,0.002,3225.0,3224.5,0.93509324]
[1767695486525,0.002,3224.7,3224.5,0.93509324]
[1767695486719,0.002,3225.0,3224.5,0.93509324]
[1767695495509,0.002,3225.0,3224.6,1.35327793]
[1767695495709,0.002,3225.0,3224.6,0.94963392]
[1767695498421,0.002,3225.0,3224.3,4.49131873]
[1767695498832,0.002,3224.7,3224.3,4.49131873]
[1767695499140,0.96215463,3224.9,3224.3,3.54168481]
[1767695504038,0.002,3225.0,3224.3,4.49131873]
[1767695504214,0.002,3225.0,3224.4,1.48006579]
[1767695504416,0.002,3225.0,3224.5,0.94963392]
[1767695510347,0.002,3225.0,3224.4,0.53043187]
[1767695510541,0.002,3225.0,3224.3,1.38991661]
[1767695510729,0.002,3224.7,3224.3,0.94963392]
[1767695514249,0.002,3224.7,3224.1,4.41734571]
[1767695514452,0.002,3224.7,3224.2,0.94963392]
[1767695514652,0.96415463,3224.7,3224.1,0.36609858]
[1767695517054,0.002,3224.7,3224.1,0.36609858]
[1767695517256,0.94297548,3224.7,3224.2,0.3468829]
[1767695517739,0.94297548,3224.7,3224.1,0.36609858]
[1767695518858,0.002,3224.7,3224.2,0.93023672]
[1767695519059,0.94097548,3224.6,3224.1,0.36609858]
[1767695522466,0.94097548,3224.6,3224.4,0.001]
[1767695524052,0.9487129,3224.7,3224.0,0.001]
[1767695524237,4.04981974,3224.7,3224.0,0.18149826]
[1767695524562,0.9487129,3224.7,3224.0,0.18149826]
[1767695524738,4.04980009,3224.7,3224.0,0.18149826]
[1767695524934,0.9487129,3224.7,3224.0,1.17248085]
[1767695525435,0.9487129,3224.7,3224.1,0.50873115]
[1767695526471,4.04982454,3224.7,3224.1,0.50873115]
[1767695526640,4.04982454,3224.7,3224.0,1.17248085]
[1767695528936,0.9487129,3224.7,3224.0,1.17248085]
[1767695529236,4.04983726,3224.7,3224.0,1.17248085]
[1767695530740,0.9467129,3224.6,3224.0,0.001]
[1767695533150,7.1492249,3224.5,3224.0,0.001]
[1767695534755,0.002,3224.4,3224.0,0.001]
[1767695546987,0.002,3224.4,3224.3,0.001]
[1767695547786,0.9487129,3224.4,3224.0,0.001]
[1767695547987,0.9467129,3224.2,3223.5,0.99098259]
[1767695548996,0.9467129,3224.2,3223.4,0.001]
[1767695552988,0.002,3224.4,3223.4,0.97580241]
[1767695553178,0.90901055,3224.4,3223.4,0.97580241]
[1767695553381,0.002,3224.4,3223.4,0.97580241]
[1767695554194,3.10336485,3224.4,3223.4,0.97580241]
[1767695554487,0.002,3224.4,3223.4,0.97580241]
[1767695555365,0.002,3224.4,3223.6,0.97480241]
[1767695555567,0.002,3224.4,3223.7,0.97480241]
[1767695559269,0.002,3224.4,3224.0,0.001]
[1767695562197,0.90901055,3224.4,3224.0,0.001]
[1767695563894,4.01040262,3224.4,3224.0,0.001]
[1767695564600,0.90901055,3224.4,3224.0,0.001]
[1767695564906,4.01037143,3224.4,3224.0,0.001]
[1767695565201,0.90701055,3224.3,3223.5,3.10220266]
[1767695565399,0.90701055,3224.3,3223.6,0.31032027]
[1767695570584,3.10336088,3224.4,3223.7,0.97480241]
[1767695571600,3.10336088,3224.4,3223.9,0.001]
[1767695571999,0.002,3224.1,3223.9,0.001]
[1767695573488,0.002,3224.1,3223.9,0.97580241]
[1767695574208,0.002,3224.4,3224.1,0.97480241]
[1767695574380,0.002,3224.7,3224.4,0.97480241]
[1767695574781,0.002,3225.3,3224.7,0.97480241]
[1767695576009,3.10248677,3225.3,3224.7,0.97480241]
[1767695576303,0.002,3225.3,3224.7,0.97480241]
[1767695578211,0.002,3225.3,3224.8,0.92790673]
[1767695579209,0.002,3225.3,3224.5,0.92790673]
[1767695579406,0.94981931,3225.3,3224.5,0.92790673]
[1767695580510,0.002,3225.3,3224.5,0.92790673]
[1767695580709,0.002,3225.3,3224.6,5.54218526]
[1767695580910,0.002,3225.3,3224.7,0.63551853]
[1767695581084,0.94981931,3225.3,3224.7,0.63551853]
[1767695581286,0.94981931,3225.3,3224.7,3.73649437]
[1767695582104,0.002,3225.6,3224.8,0.91515854]
[1767695583501,0.18569577,3225.5,3224.8,0.91515854]
[1767695583823,0.18569577,3225.5,3224.9,0.46516529]
[1767695584005,0.002,3225.6,3225.0,0.91515854]
[1767695585239,0.002,3225.2,3225.0,0.91515854]
[1767695585529,0.18769577,3225.5,3224.9,0.46516529]
[1767695585731,0.002,3225.5,3225.0,0.91515854]
[1767695585942,0.002,3225.5,3225.1,0.91515854]
[1767695598140,0.002,3225.2,3225.1,0.91515854]
[1767695598555,0.18769577,3225.5,3224.8,3.1009541]
[1767695599524,0.18769577,3225.5,3224.7,3.73653129]
[1767695599747,0.002,3225.5,3224.8,0.91515854]
[1767695599950,0.002,3225.5,3225.0,0.91515854]
[1767695600753,0.18769577,3225.5,3224.7,0.91515854]
[1767695601252,0.18769577,3225.5,3224.8,0.91515854]